Cogmind - Beta 16.1 @@@ ROGUE MODE // 2026.04.20 @ 01:45:54 Player: certified.possum Result: Destroyed by G-34 Mercenary with Small Laser Performance ------------- Evolutions (1) 500 Regions Visited (2) 400 Robots Destroyed (33) 165 Value Destroyed (670) 670 Prototype IDs (0) 0 Alien Tech Used (0) 0 Bonus (0) 0 TOTAL SCORE: 1735 Bonus ------- None Cogmind --------- Core Integrity 0/400 Matter 300/300 Energy 80/100 System Corruption 1% Temperature Cool (6) Movement Core (150) Ox2 Location -9/Materials Parts ------- > --- POWER (1) -------- (None) > --- PROPULSION (4) --- (None) > --- UTILITY (2) ------ Small Storage Unit ECM Suite > --- WEAPON (2) ------- (None) > --- INVENTORY (8) ---- EM Pulse Gun Small Laser Welding Torch Peak State ------------ > --- POWER ------------ Ion Engine > --- PROPULSION ------- Improved Aluminum Leg Improved Aluminum Leg > --- UTILITY ---------- Small Storage Unit Transport Network Coupler > --- WEAPON ----------- Autogun Autogun > --- INVENTORY -------- ECM Suite EM Pulse Gun Medium Laser [Rating: 11] Favorites ----------- Power Ion Engine Engine Ion Engine Propulsion Aluminum Leg Leg Aluminum Leg Utility Small Storage Unit Device ECM Suite Storage Small Storage Unit Processor Transport Network Coupler Weapon Autogun Energy Gun EM Pulse Gun Ballistic Gun Autogun Build | -11 -10 -9 ------- Run | Yrd Mat Mat Slots Evolved 2 | . . 2 Power . | . . . Propulsion 2 | . . 2 Utility . | . . . Weapon . | . . . Parts Attached 21 | 6 8 7 Power 5 | 1 1 3 Engine 5 | 1 1 3 Core . | . . . Reactor . | . . . Propulsion 6 | 2 3 1 Treads . | . . . Leg 6 | 2 3 1 Wheel . | . . . Hover . | . . . Flight . | . . . Utility 3 | 1 2 . Device 1 | . 1 . Storage 1 | 1 . . Processor 1 | . 1 . Hackware . | . . . Protection . | . . . Artifact . | . . . Weapon 7 | 2 2 3 Energy Gun 3 | 2 . 1 Energy Cannon . | . . . Ballistic Gun 4 | . 2 2 Ballistic Cannon . | . . . Launcher . | . . . Special Weapon . | . . . Impact Weapon . | . . . Slashing Weapon . | . . . Piercing Weapon . | . . . Special Melee Weapon . | . . . Unidentified Prototypes . | . . . Parts Lost 15 | . 3 12 Power 5 | . 1 4 Propulsion 4 | . 1 3 Utility . | . . . Weapon 6 | . 1 5 Highest Loss Streak 5 | . 2 5 To Critical Strikes . | . . . Average Backups 2 | . 3 2 Power . | . . . Propulsion . | . . . Utility . | . . . Weapon 1 | . 1 1 Tool/Special . | . . . Unused Backups . | . . . Power . | . . . Propulsion . | . . . Utility . | . . . Weapon . | . . . Tool/Special . | . . . Average Slot Usage (%) 80 | . 97 63 Engine 11 | . 13 9 Leg 20 | . 27 13 Device 4 | . . 8 Storage 12 | . 14 11 Processor 7 | . 11 2 Energy Gun 5 | . 10 1 Ballistic Gun 17 | . 17 17 Peak Build Rating 11 | 6 11 10 Average Rating 8 | 3 9 7 On Entrance 5 | . 6 10 Avg Prop Armor Cover (%) . | . . . Naked Turns . | . . . Heaviest Build 17 | 14 16 17 Greatest Support 26 | 20 26 23 Greatest Overweight (x) 3 | . . 3 Average Overweight (x) . | . . . Largest Inventory Capacity 8 | 8 8 8 Average Capacity 7 | 6 8 8 Most Carried 6 | 4 5 6 Average Carried 2 | 1 3 2 Final Capacity 8 | 8 8 8 Final Carried 4 | 1 4 3 Class Distribution -------------------- 73% | Mutant 26% | Scavenger-Mutant Dominant Class ---------------- Mutant | -10/Materials Scavenger-Mutant | -9/Materials Resources | -11 -10 -9 ----------- Run | Yrd Mat Mat Matter Collected 787 | 32 501 254 Remotely . | . . . Salvage Created 958 | . 570 388 Parts 65 | . 37 28 Haulers Intercepted . | . . . Recyclers Shooed 3 | . 3 . Parts Field Recycled . | . . . Retrieved Matter . | . . . Parts Self-Destructed . | . . . Prevented . | . . . Parts Restored . | . . . Kills | -11 -10 -9 ------- Run | Yrd Mat Mat Combat Hostiles Destroyed 27 | . 13 14 Guns 27 | . 13 14 Classes Destroyed 7 | . 6 1 Worker 2 | . 2 . Recycler 1 | . 1 . Operator 1 | . 1 . Watcher 2 | . 1 1 Swarmer 15 | . 6 9 Grunt 9 | . 7 2 Sentry 3 | . . 3 Best Kill Streak 4 | . 4 4 Combat Bots Only 4 | . 3 4 Max Kills in Single Turn 2 | . 2 2 Gunslinging . | . . . Exploded . | . . . Melee . | . . . Uniques/NPCs Destroyed . | . . . Combat | -11 -10 -9 -------- Run | Yrd Mat Mat Hostile Shots Fired 263 | . 91 172 Missed 80 | . 30 50 Hits 183 | . 61 122 Projectile 183 | . 61 122 Critical Strikes 2 | . . 2 Damage Taken 1934 | . 631 1303 Core 550 | . 144 406 Absorbed by Shields . | . . . Core Remaining (%) 71 | 100 42 . Volleys Fired 96 | . 39 57 Largest 2 | . 2 2 Hottest 90 | . 80 90 Shots Fired 170 | . 78 92 Gun 170 | . 78 92 Cannon . | . . . Launcher . | . . . Special . | . . . Kinetic 127 | . 54 73 Thermal 16 | . . 16 Explosive . | . . . Electromagnetic 27 | . 24 3 Robot Hit Streak 8 | . 7 8 Robot Miss Streak 4 | . 4 4 Penetration Max . | . . . Secondary Targets 3 | . 1 2 Max Gunslinging Chain 1 | . 1 1 Shots Hit Robots 92 | . 39 53 Core Hits 47 | . 22 25 Critical Kills . | . . . Critical Parts Destroyed . | . . . Critical Strikes 2 | . 1 1 Burn 1 | . . 1 Corrupt 1 | . 1 . Melee Attacks . | . . . Impact . | . . . Slashing . | . . . Piercing . | . . . Sneak Attacks . | . . . Combat Hostiles . | . . . Follow-up Attacks . | . . . Damage Inflicted 1471 | . 712 759 Guns 1390 | . 636 754 Cannons . | . . . Explosions 49 | . 49 . Melee . | . . . Ramming 32 | . 27 5 Kinetic 1043 | . 481 562 Thermal 210 | . 49 161 Explosive . | . . . Electromagnetic 186 | . 155 31 Impact . | . . . Slashing . | . . . Piercing . | . . . Highest Corruption 1 | . . 1 Average Corruption 1 | . . 1 Corruption Purged . | . . . Corruption Blocked . | . . . Overload Shots . | . . . Overflow Damage . | . . . Projectiles . | . . . Explosions . | . . . Melee . | . . . Knockbacks 1 | . 1 . Impact 1 | . 1 . Kinetic . | . . . Secondary . | . . . Self-Inflicted Damage . | . . . Shots . | . . . Rammed 1 | . . 1 Targets Rammed 8 | . 4 4 Kicked 7 | . 4 3 Crushed . | . . . Highest Temperature 123 | . 90 123 Average Temperature 28 | . 22 37 Received Heat Transfer 651 | . 234 417 Siege Activations . | . . . Martial Activations . | . . . Shielding Activations . | . . . Robots Disrupted . | . . . Combat Hostiles . | . . . Robots Corrupted . | . . . Combat Hostiles . | . . . Parts Fried . | . . . Impact Corruptions . | . . . Robots Melted . | . . . Combat Hostiles . | . . . Parts Melted 2 | . . 2 Heat Transferred 655 | . 100 555 Parts Sabotaged . | . . . Parts Stolen . | . . . Parts Stripped . | . . . Power Chain Reactions 1 | . 1 . Alert | -11 -10 -9 ------- Run | Yrd Mat Mat Maximum Alert Level . | . . . Low Security (%) 100 | 100 100 100 Level 1 . | . . . Level 2 . | . . . Level 3 . | . . . Level 4 . | . . . Level 5 . | . . . High Security . | . . . Max Security . | . . . Peak Influence 126 | . 126 119 Initial 28 | . . 28 Average 54 | . 63 48 Influence Increases 708 | . 344 364 Destroy 0b10 Robot/C 540 | . 260 280 Destroy 0b10 Robot/NC 30 | . 25 5 Destroy Leader 104 | . 42 62 Successful Hack 2 | . . 2 Disable Machine 15 | . . 15 Destroy Structure 2 | . 2 . Lose Combat Pursuer 15 | . 15 . Influence Decreases 708 | . 275 433 Entered New Map 41 | . . 41 Time Decay 546 | . 245 301 Lost Part 121 | . 30 91 Squads Dispatched 6 | . 3 3 Investigation 2 | . 2 . Extermination . | . . . Reinforcement 4 | . 1 3 Assault . | . . . Garrison . | . . . Intercept . | . . . Searches Triggered . | . . . Construction Impeded . | . . . Haulers Reinforced . | . . . Active Scanning Responses . | . . . Cargo Convoy Interrupts . | . . . Stealth | -11 -10 -9 --------- Run | Yrd Mat Mat Distress Signals 4 | . 2 2 Communications Jammed . | . . . Distress Signals . | . . . Times Spotted 48 | . 18 30 Peak Tracking Total 5 | . 5 5 Tactical Retreats 5 | . 1 4 ECM-based Alert Blocks 5 | . . 5 Traps | -11 -10 -9 ------- Run | Yrd Mat Mat Traps Triggered 2 | . 2 . Indirectly . | . . . Trap Hack Attempts . | . . . Triggered . | . . . Disarmed . | . . . Reprogrammed . | . . . Reused . | . . . Traps Extracted . | . . . Installed . | . . . Triggered . | . . . Machines | -11 -10 -9 ---------- Run | Yrd Mat Mat Machines Disabled 1 | . . 1 Max in Single Turn 1 | . . 1 Machines Repaired . | . . . Machines Dismantled . | . . . Machines Sabotaged . | . . . Overloaded Fab Kills . | . . . Hacking | -11 -10 -9 --------- Run | Yrd Mat Mat Machines Accessed 1 | . . 1 Terminals . | . . . Fabricators . | . . . Repair Stations . | . . . Recycling Units . | . . . Scanalyzers 1 | . . 1 Garrison Access . | . . . Total Hacks 1 | . . 1 Successful 1 | . . 1 Failed . | . . . Catastrophic . | . . . Database Lockouts . | . . . Manual . | . . . Terminals . | . . . Fabricators . | . . . Repair Stations . | . . . Recycling Units . | . . . Scanalyzers 1 | . . 1 Garrison Access . | . . . Terminal Hacks . | . . . Fabricator Hacks . | . . . Repair Station Hacks . | . . . Recycling Unit Hacks . | . . . Scanalyzer 1 | . . 1 Retrieve Study 1 | . . 1 Garrison Access Hacks . | . . . Unauthorized Hacks . | . . . Terminals . | . . . Fabricators . | . . . Repair Stations . | . . . Recycling Units . | . . . Scanalyzers . | . . . Garrison Access . | . . . Data Cores Recovered 1 | . 1 . Used . | . . . Hacking Detections . | . . . Full Trace Events . | . . . Feedback Events . | . . . Feedback Blocked . | . . . Robot Schematics Acquired . | . . . Robots Built . | . . . Authchips . | . . . Time . | . . . Total Robot Build Rating . | . . . Part Schematics Acquired . | . . . Parts Built . | . . . Authchips . | . . . Time . | . . . Total Part Build Rating . | . . . Part Studies Acquired 1 | . . 1 Parts Repaired . | . . . Time . | . . . Parts Recycled . | . . . Recycled Matter . | . . . Retrieved Matter . | . . . Retrieved Components . | . . . Parts Scanalyzed . | . . . Part Schematics Acquired . | . . . Parts Damaged . | . . . Bothacking | -11 -10 -9 ------------ Run | Yrd Mat Mat Used RIF Installer . | . . . Robots Hacked . | . . . Non-combat . | . . . Combat . | . . . Robot Hacks Applied . | . . . Relay Couplers Released . | . . . Fabnet Peak Effective % . | . . . Robots Rewired . | . . . Allies Hacked . | . . . Hacks Repelled . | . . . Allies | -11 -10 -9 -------- Run | Yrd Mat Mat Total Allies . | . . . Largest Group . | . . . Highest-Rated Group . | . . . Highest-Rated Ally . | . . . Total Orders . | . . . Ally Attacks . | . . . Total Damage . | . . . Kills . | . . . Allies Corrupted . | . . . Allies Melted . | . . . Intel | -11 -10 -9 ------- Run | Yrd Mat Mat Active Infowar (turns) 1369 | . 632 737 T.N.C. 759 | . 609 150 ECM 610 | . 23 587 Robot Analysis Total . | . . . Derelict Logs Recovered . | . . . Drone Launches . | . . . Drone Recoveries . | . . . Exploration | -11 -10 -9 ------------- Run | Yrd Mat Mat Turns Passed 1502 | 48 716 738 Spaces Moved 875 | 33 487 355 Core 36 | 5 . 31 Treads . | . . . Legs 839 | 28 487 324 Wheels . | . . . Hover . | . . . Flight . | . . . Fastest Speed 50 | 50 120 120 Average Speed 136 | 109 120 161 Slowest Speed 200 | 120 120 200 Overloaded Moves . | . . . Propulsion Burnouts . | . . . Robots Hopped . | . . . Potential Cave-ins . | . . . Cave-ins Triggered . | . . . Exploration Rate (%) 36 | 3 68 38 Regions Visited 2 Branch Regions . Pre-discovered Areas . | . . . Known Exits Taken . | . . . Unknown Exits Taken 2 | 1 1 . Scrap Searched . | . . . Spaces Dug . | . . . Terrain Destroyed 2 | . 2 . Melee . | . . . Projectile . | . . . AOE 2 | . 2 . Terrain Rammed . | . . . Walls Destroyed . | . . . Machines Disabled . | . . . Actions | -11 -10 -9 --------- Run | Yrd Mat Mat Total 1027 | 45 549 433 Wait . | . . . Move 873 | 32 486 355 Hop . | . . . Pick Up 23 | 7 9 7 Fast Attach . | . . . Attach 17 | 6 4 7 Detach . | . . . Swap 8 | . 5 3 Drop 2 | . 2 . Fire 96 | . 39 57 Melee . | . . . Ram 1 | . . 1 Kick 7 | . 4 3 Crush . | . . . Escape Stasis . | . . . Rewire . | . . . Trap . | . . . Miscellaneous . | . . . Route ------- -11/Scrapyard -10/Materials (discovered 3 exits: *Mat / [*Min x2]) -9/Materials (discovered 1 exit: [*Mat]) History --------- Turn | Location | Event 11 | -11/Scrapyard | Discovered new exit (range 15) 49 | -11/Scrapyard | Entered Materials 194 | -10/Materials | Discovered new exit (range 13) 257 | -10/Materials | Discovered new exit (range 10) 327 | -10/Materials | Build established: Mutant 624 | -10/Materials | Core integrity fell below 50% 722 | -10/Materials | Discovered new exit (range 12) 765 | -10/Materials | Entered another Materials area 765 | -9/Materials | Evolved 2 slots: Propulsion x2 928 | -9/Materials | Lost 3 parts (1p1n1w) 1065 | -9/Materials | Lost 3 parts (1p1n1w) 1254 | -9/Materials | Discovered new exit (range 10) 1284 | -9/Materials | Build established: Scavenger-Mutant 1426 | -9/Materials | Core integrity fell below 50% 1492 | -9/Materials | Core integrity fell below 20% 1501 | -9/Materials | Lost 5 parts (1p1n3w) 1503 | -9/Materials | Destroyed by G-34 Mercenary with Small Laser Last Messages --------------- O-16 Technician locks terminal. Kicked A-02 Transporter. Acquired 15 matter. Lgt. Ion Engine destroyed. Hvy. Assault Rifle destroyed. Y-45 Defender suffers critical hit (Burn). Aluminum Leg destroyed. Lgt. Assault Rifle destroyed. Heat Sink melted. Y-45 Defender destroyed. Med. Laser+ destroyed. K-01 Serf collects debris. Slammed into W-16 Scout. Destabilizing: System corrupted (+1). ALERT: Hostiles spotted, dispatching reinforcements to Terminal M004. Lgt. Ion Engine destroyed. Critical hit (Burn: +37). Acquired Welding Torch. Acquired Sml. Laser. Map ----- +----------------------------------------------------+ | ?????????????????????????????????????????????????? | | ?????????????????????????????????????????????????? | | ?????????????????????????????????????????????????? | | ?????????????????????????????????????????????????? | | ?????????????????????????????????????????????????? | | ?????????????????????????????????????????????????? | | ?????????????????????????????????????????????????? | | ?????????????????????????????????????????????????? | | ?????????????????????????????????????????????????? | | ?????????????????????????????????????????????????? | | ???????????????????????????? ??????????????????? | | ???????????????????????????? ?????????????????? | | ???????????????????????????# ?????????????????? | | ???????????????????????????# ?????????????????? | | ???????????????????????????# #?????????????????? | | ???????????????????????????# #?????????????????? | | ???????????????????????????# #?????????????????? | | ???????????????????????????# #?????????######### | | ???????????????????????????# ########### | | ???????????????????????????# # ## """ "" | | ????????????################ # """ ## """"""" | | ???????? ??# ^ # """ ## """" | | ????????? # ! + """ ## | | ??????????? + """ # ########+# | | ????#######?#^ "T"^ # ###### | | ????[ #?# ^^ @ # + | | ??? #?# | + "T" ###### | | ??""" #?# %g ######## """ #????### # | | #""""" #?# Y #??????##########??????# # | | #""""" #?# #????????????????????###+# | | #""""" ### k#########????????????????????# | | ? """ ?# #???????????????????????????# | | ??? ???#% #???????????????????????????# | | ???##+###### #???????????????????????????# " | | ???# #???????????????????????????# " | | ???# ##### #???????????????????????????# " | | ???# #???## ##???????????????????????????# | | ???# #????# #????????????????????????????# | | ???# #????# #????????????????????????????##### | | ???# #????# #????????????????????????????????? | | ???# #????# ####### #????????????????????? | | ???# #????# ! ???????????????? | | ???# #????# =%[ ???????????????? | | ???# #????# * ???????????????? | | ???# #????########### #####????????????????? | | ???# #???????????????? ##????????????????????? | | ???# #?????????????????? #?????????????????????? | | ???# ########????????????#?????????????????????? | | ???# #??????????????????????????????????? | | ???# #??????????????????????????????????? | +----------------------------------------------------+ Best States ------------- Heat Dissipation 28 Energy Generation 10 Energy Capacity 250 Matter Stores 300 Matter Capacity 300 Sight Range 16 Terrain Scan Density 10 ECM Strength 1 Evasion (%) 55 Item Schematics ----------------- None Robot Schematics ------------------ None Fabricated ------------ Nothing Repaired ---------- Nothing Studied --------- Med. Laser | -9/Materials | Hacked Alien Tech Used ----------------- None Achievements -------------- Ghost 'Em Item+ Challenges ------------ None Game ------ Seed SensorFissionBattery Manual? 0 Play Time 00:17:52 Cumulative 5.4 hours Start 2026.04.20 @ 01:30:15 End 2026.04.20 @ 01:45:54 Sessions 1 Manual Loads 0 Difficulty Rogue Special Mode None Game No. 21 Rogue 21 Adventurer 0 Explorer 0 Win Type - Total 0 Types 0/0/0/0/0/0/0/0/0/0 Lore% 2 Gallery% 10 Achievement% 8 Wizard Run 0 Options --------- Layout 1 ASCII 0 Keyboard 0 Movement Mouse Keybinds 0 Fullscreen 2 Font 32/Tamsyn Map View 50x35 Zoom Use 0% Tactical HUD 0 Map Filters NONE Filters NONE Steam 1 RUN: 6509e01b-36f0-45e7-851f-92c8bcc94af5